bitfinex/quotes_BTCUSD_20241101
["timestamp","ask_amount","ask_price","bid_price","bid_amount"]
[1730478216299,0.22213545,70262.0,70261.0,0.005]
[1730478216510,0.23903041,70262.0,70261.0,0.003]
[1730478216809,0.24103041,70262.0,70261.0,0.003]
[1730478217022,0.24103041,70262.0,70247.0,0.0763]
[1730478217023,0.023,70260.0,70251.0,0.21288977]
[1730478217252,0.142344,70252.0,70251.0,0.21288977]
[1730478217483,0.142344,70252.0,70240.0,0.21288977]
[1730478217484,0.07900445,70252.0,70240.0,0.21288977]
[1730478217712,0.09589941,70251.0,70240.0,0.21288977]
[1730478217929,0.284726,70243.0,70240.0,0.21288977]
[1730478218182,0.142366,70241.0,70240.0,0.21288977]
[1730478218407,0.142366,70241.0,70233.0,0.284766]
[1730478218408,0.38068495,70241.0,70233.0,0.284766]
[1730478218674,0.142383,70233.0,70232.0,0.000822]
[1730478219161,0.21123114,70233.0,70232.0,0.000822]
[1730478219394,0.23877005,70233.0,70232.0,0.000822]
[1730478219618,0.09638705,70233.0,70232.0,0.000822]
[1730478219861,0.09638705,70233.0,70232.0,0.145207]
[1730478220744,0.09638705,70233.0,70231.0,0.142386]
[1730478220958,0.284747,70238.0,70231.0,0.142386]
[1730478220959,0.09638705,70232.0,70231.0,0.142386]
[1730478221632,0.09638705,70232.0,70231.0,0.28084125]
[1730478221896,0.07944003,70232.0,70231.0,0.28084125]
[1730478222161,0.21288977,70256.0,70231.0,0.28084125]
[1730478222162,0.02210893,70246.0,70238.0,0.284745]
[1730478222375,0.25800566,70245.0,70244.0,0.14236]
[1730478222633,0.25800566,70245.0,70244.0,0.28081525]
[1730478222634,0.01326937,70245.0,70244.0,0.28081525]
[1730478222851,0.21288977,70255.0,70254.0,0.14234]
[1730478223078,0.21288977,70255.0,70254.0,0.28079525]
[1730478223079,0.24738293,70255.0,70254.0,0.28079525]
[1730478223302,0.04511198,70255.0,70254.0,0.28079525]
[1730478223755,0.03449316,70255.0,70254.0,0.28079525]
[1730478223963,0.03449316,70255.0,70254.0,0.28279525]
[1730478224170,0.03449316,70255.0,70254.0,0.39614909]
[1730478224398,0.03449316,70255.0,70254.0,0.39914909]
[1730478224632,0.18745424,70255.0,70254.0,0.005]
[1730478224879,0.45577717,70255.0,70254.0,0.005]
[1730478225121,0.45577717,70255.0,70240.0,0.000822]
[1730478225122,0.1532,70254.0,70240.0,0.000822]
[1730478225372,0.265366,70241.0,70240.0,0.000822]
[1730478225589,0.2786326,70241.0,70240.0,0.000822]
[1730478225813,0.3062541,70241.0,70240.0,0.000822]
[1730478226709,0.2929875,70241.0,70240.0,0.000822]
[1730478226960,0.30626334,70241.0,70240.0,0.001822]
[1730478227188,0.265366,70241.0,70240.0,0.000822]
[1730478227401,0.30925066,70241.0,70240.0,0.000822]
[1730478227655,0.44770591,70241.0,70240.0,0.000822]
[1730478228093,0.44470591,70241.0,70240.0,0.000822]
[1730478228348,0.14088466,70241.0,70232.0,0.21288977]
[1730478228561,0.01415008,70246.0,70240.0,0.21288977]
[1730478228769,0.000807,70262.0,70240.0,0.001]
[1730478228770,0.008,70241.0,70240.0,0.001]
[1730478228992,0.04085256,70241.0,70239.0,0.14237]
[1730478229233,0.04085256,70240.0,70239.0,0.142371]
[1730478229480,0.04085256,70240.0,70237.0,0.28475]
[1730478229481,0.04085256,70240.0,70238.0,0.142372]
[1730478229738,0.01,70241.0,70237.0,0.28475]
[1730478229931,0.04084994,70240.0,70237.0,0.142374]
[1730478230169,0.04084994,70239.0,70237.0,0.142374]
[1730478230392,0.142365,70242.0,70237.0,0.142374]
[1730478230393,0.04084994,70238.0,70237.0,0.142374]
[1730478230593,0.04084994,70238.0,70233.0,0.42322125]
[1730478230594,0.02387334,70238.0,70234.0,0.28476]
[1730478230816,0.0238756,70237.0,70236.0,0.427131]
[1730478231489,0.0238756,70237.0,70236.0,0.56558625]
[1730478231951,0.01326523,70237.0,70229.0,0.711955]
[1730478232218,0.04510325,70236.0,70215.0,0.41258977]
[1730478232431,0.1,70247.0,70215.0,0.41258977]
[1730478232432,0.20445885,70235.0,70231.0,0.142385]
[1730478232647,0.284752,70237.0,70229.0,0.284779]
[1730478232648,0.06207985,70234.0,70229.0,0.284779]
[1730478232875,0.21288977,70236.0,70219.0,0.284823]
[1730478232876,0.06207985,70233.0,70219.0,0.284823]
[1730478233102,0.06207985,70232.0,70231.0,0.142387]
[1730478233595,0.06207985,70232.0,70231.0,0.144387]
[1730478234221,0.0753478,70232.0,70231.0,0.144387]
[1730478234658,0.0753478,70232.0,70231.0,0.147387]
[1730478234872,0.07536093,70232.0,70231.0,0.145387]
[1730478235092,0.07536093,70232.0,70231.0,0.146209]
[1730478235719,0.07536093,70232.0,70231.0,0.003822]
[1730478235922,0.07536093,70232.0,70231.0,0.005822]
[1730478236177,0.07536093,70232.0,70231.0,0.148209]
[1730478236836,0.21774593,70232.0,70231.0,0.005822]
[1730478238482,0.07536093,70232.0,70231.0,0.148209]
[1730478238728,0.05838433,70232.0,70231.0,0.148209]
[1730478238949,0.05838727,70232.0,70231.0,0.148209]
[1730478239176,0.05838739,70232.0,70231.0,0.43298]
[1730478239410,0.0583887,70232.0,70231.0,0.43298]
[1730478239662,0.04511847,70232.0,70231.0,0.57143525]
[1730478239903,0.01327023,70232.0,70231.0,0.57143525]
[1730478240164,0.01415449,70250.0,70231.0,0.002822]
[1730478240165,0.02122874,70243.0,70231.0,0.002822]
[1730478240439,0.02122874,70243.0,70178.0,0.08457221]
[1730478240440,0.48795208,70231.0,70178.0,0.08457221]
[1730478240645,0.284855,70212.0,70187.0,0.00284924]
[1730478240876,0.04087046,70211.0,70187.0,0.00284924]
[1730478241182,0.284841,70215.0,70186.0,0.0792]
[1730478241183,0.05414617,70210.0,70186.0,0.0792]
[1730478241353,0.284908,70198.0,70186.0,0.0792]
[1730478241607,0.123,70207.0,70180.0,0.21288977]
[1730478241810,0.01062115,70197.0,70180.0,0.21288977]
[1730478242030,0.1,70203.0,70180.0,0.21288977]
[1730478242031,0.03716278,70196.0,70180.0,0.21288977]
[1730478242282,0.21288977,70192.0,70181.0,0.13845525]
[1730478242630,0.01325977,70191.0,70182.0,0.142485]
[1730478242721,0.01325977,70191.0,70182.0,0.21288977]
[1730478242949,0.284899,70201.0,70184.0,0.284965]
[1730478242950,0.01325977,70190.0,70184.0,0.284965]
[1730478243182,0.01325977,70189.0,70185.0,0.13845525]
[1730478243399,0.284899,70201.0,70185.0,0.13845525]
[1730478243400,0.32728196,70219.0,70185.0,0.13845525]
[1730478243623,0.21288977,70194.0,70193.0,0.142462]
[1730478243960,0.04245496,70240.0,70201.0,0.0802]
[1730478244202,0.06368244,70244.0,70201.0,0.0802]
[1730478244203,0.21288977,70218.0,70217.0,0.142415]
[1730478244639,0.21288977,70239.0,70225.0,0.142399]
[1730478244868,0.21288977,70231.0,70225.0,0.42325125]
[1730478245069,0.21288977,70239.0,70229.0,0.142391]
[1730478245330,0.21288977,70239.0,70228.0,0.284785]
[1730478245331,0.01325684,70230.0,70228.0,0.284785]
[1730478245538,0.01325684,70229.0,70228.0,0.23077928]
[1730478245747,0.01325684,70229.0,70228.0,0.13845525]
[1730478246136,0.01325684,70229.0,70228.0,0.28084825]
[1730478246338,0.01325684,70229.0,70228.0,0.13845525]
[1730478246548,0.01325684,70229.0,70228.0,0.28084825]
[1730478246771,0.01325684,70229.0,70228.0,0.13845525]
[1730478246978,0.01325684,70229.0,70228.0,0.28084825]
[1730478247196,0.01325684,70229.0,70228.0,0.28284825]
[1730478247413,0.01325684,70229.0,70228.0,0.28084825]
[1730478248471,0.01325684,70229.0,70228.0,0.28284825]
[1730478248689,0.01325684,70229.0,70228.0,0.28484825]
[1730478248970,0.25564784,70229.0,70228.0,0.004]
[1730478249193,0.25564784,70229.0,70225.0,0.5]
[1730478249194,0.265397,70226.0,70225.0,0.5]
[1730478249398,0.74010928,70226.0,70225.0,0.5]
[1730478250719,0.74810928,70226.0,70225.0,0.501]
[1730478251378,0.36995078,70226.0,70225.0,0.001]
[1730478251607,0.36995078,70226.0,70225.0,0.002]
[1730478251608,0.37795078,70226.0,70225.0,0.002]
[1730478251811,0.21255378,70226.0,70225.0,0.002]
[1730478252004,0.21255378,70226.0,70225.0,0.001]
[1730478252005,0.37795754,70226.0,70225.0,0.001]
[1730478252224,0.35585682,70226.0,70225.0,0.002]
[1730478252413,0.84276787,70226.0,70225.0,0.002]
[1730478252627,0.76301532,70226.0,70225.0,0.001]
[1730478252869,0.76301532,70226.0,70189.0,0.2915]
[1730478252870,0.142429,70210.0,70192.0,0.0754]
[1730478253065,0.5435875,70210.0,70189.0,0.1915]
[1730478253295,0.5435875,70210.0,70182.0,0.21288977]
[1730478253296,0.142448,70201.0,70182.0,0.49785977]
[1730478253509,0.142468,70191.0,70182.0,0.21288977]
[1730478253749,0.19022371,70191.0,70182.0,0.21288977]
[1730478253963,0.142476,70187.0,70182.0,0.21288977]
[1730478254174,0.20084905,70187.0,70182.0,0.21288977]
[1730478254606,0.0672801,70187.0,70182.0,0.21288977]
[1730478254835,0.0672801,70187.0,70185.0,0.142479]
[1730478255067,0.0672801,70187.0,70182.0,0.49785977]
[1730478255068,0.05837305,70187.0,70186.0,0.1433]
[1730478255287,0.05837305,70187.0,70186.0,0.28175525]
[1730478255565,0.03448487,70187.0,70186.0,0.28175525]
[1730478255772,0.01326341,70187.0,70186.0,0.28275525]
[1730478255983,0.003,70191.0,70190.0,0.14247]
[1730478256195,0.003,70191.0,70190.0,0.13845525]
[1730478256196,0.01325847,70191.0,70190.0,0.13845525]
[1730478256405,0.01325847,70191.0,70190.0,0.28092525]
[1730478257195,0.21288977,70208.0,70190.0,0.72950352]
[1730478257402,0.05831904,70207.0,70206.0,0.142437]
[1730478257640,0.01325356,70207.0,70206.0,0.28089225]
[1730478258076,0.01325356,70207.0,70206.0,0.142437]
[1730478258516,0.01325356,70207.0,70206.0,0.28374083]
[1730478258753,0.01325356,70207.0,70206.0,0.9572908]
[1730478259111,0.02120415,70225.0,70224.0,0.142401]
[1730478259337,0.05831817,70225.0,70224.0,0.142401]
[1730478259587,0.04771306,70225.0,70224.0,0.142401]
[1730478259812,0.04771306,70225.0,70218.0,0.284826]
[1730478260040,0.14242,70215.0,70206.0,0.14145525]
[1730478260254,0.14242,70215.0,70214.0,0.21288977]
[1730478260485,0.04771849,70215.0,70210.0,0.142429]
[1730478260687,0.04771849,70215.0,70207.0,0.42332625]
[1730478260688,0.142425,70213.0,70207.0,0.42332425]
[1730478260929,0.05832345,70212.0,70211.0,0.142427]
[1730478261148,0.05832345,70212.0,70207.0,0.284871]
[1730478261353,0.05832345,70211.0,70210.0,0.142427]
[1730478261557,0.04771849,70211.0,70210.0,0.142427]
[1730478261768,0.04771849,70211.0,70210.0,0.144427]
[1730478262191,0.04771849,70211.0,70210.0,0.142427]
[1730478262403,0.04771849,70211.0,70210.0,0.36163069]
[1730478262601,0.03446335,70211.0,70210.0,0.69565955]
[1730478262792,0.001644,70228.0,70227.0,0.142395]
[1730478263030,0.04939577,70228.0,70227.0,0.142395]
[1730478263270,0.04939577,70228.0,70227.0,0.283698]
[1730478263508,0.04939577,70228.0,70227.0,0.28085025]
[1730478263731,0.01490838,70228.0,70227.0,0.28085025]
[1730478264167,0.03612996,70228.0,70227.0,0.28085025]
[1730478264611,0.03612996,70228.0,70227.0,0.142395]
[1730478264832,0.03612996,70228.0,70210.0,0.2763]
[1730478264833,0.04939363,70228.0,70210.0,0.2763]
[1730478265042,0.06726566,70227.0,70210.0,0.2743]
[1730478265251,0.14244,70205.0,70197.0,0.269]
[1730478265459,0.142427,70211.0,70210.0,0.21288977]
[1730478265665,0.142446,70202.0,70201.0,0.21288977]
[1730478265869,0.06730067,70202.0,70201.0,0.21288977]
[1730478266093,0.05403272,70202.0,70194.0,0.13845525]
[1730478266298,0.04429985,70201.0,70194.0,0.13845525]
[1730478266497,0.04341569,70200.0,70198.0,0.142452]
[1730478266723,0.04341569,70200.0,70195.0,0.28492]
[1730478266724,0.04341356,70199.0,70197.0,0.284912]
[1730478266967,0.04341356,70199.0,70195.0,0.28492]
[1730478266968,0.03450691,70202.0,70195.0,0.28492]
[1730478267410,0.05403164,70201.0,70198.0,0.142452]
[1730478267663,0.04341433,70200.0,70194.0,0.42337725]
[1730478267895,0.02212212,70195.0,70172.0,0.39918977]
[1730478268106,0.03450691,70202.0,70172.0,0.39918977]
[1730478268107,0.3070551,70193.0,70190.0,0.21288977]
[1730478268381,0.3070551,70193.0,70187.0,0.13845525]
[1730478268382,0.06553743,70192.0,70189.0,0.142472]
[1730478268611,0.07615474,70191.0,70189.0,0.142472]
[1730478268831,0.05403164,70190.0,70189.0,0.142472]
[1730478269057,0.05403164,70190.0,70187.0,0.28093025]
[1730478269260,0.05403164,70189.0,70188.0,0.142473]
[1730478269501,0.05403164,70189.0,70187.0,0.28092925]
[1730478269726,0.0221231,70190.0,70188.0,0.142474]
[1730478269938,0.05403777,70189.0,70188.0,0.142474]
[1730478270150,0.05403777,70189.0,70187.0,0.28093125]
[1730478270377,0.142464,70193.0,70188.0,0.142474]
[1730478270603,0.05403029,70192.0,70189.0,0.13845525]
[1730478270810,0.04242154,70202.0,70189.0,0.13845525]
[1730478270811,0.1,70199.0,70191.0,0.284936]
[1730478271020,0.02217789,70198.0,70194.0,0.142461]
[1730478271190,0.02217789,70198.0,70192.0,0.142464]
[1730478271191,0.19648243,70197.0,70192.0,0.142464]
[1730478271397,0.142462,70195.0,70191.0,0.13845525]
[1730478271590,0.05402543,70194.0,70191.0,0.28092225]
[1730478271902,0.05402543,70194.0,70188.0,0.286945]
[1730478271903,0.142472,70189.0,70188.0,0.002]
[1730478272154,0.142472,70189.0,70173.0,0.21288977]
[1730478272155,0.165476,70187.0,70173.0,0.21288977]
[1730478272362,0.33649059,70187.0,70173.0,0.21288977]
[1730478272614,0.142502,70174.0,70173.0,0.21288977]
[1730478272856,0.05402543,70174.0,70173.0,0.21288977]
[1730478273079,0.05402543,70174.0,70168.0,0.001612]
[1730478273080,0.142511,70170.0,70168.0,0.001612]
[1730478273324,0.04340735,70170.0,70168.0,0.001612]
[1730478273554,0.19652935,70170.0,70168.0,0.001612]
[1730478273779,0.05401835,70170.0,70168.0,0.001612]
[1730478274001,0.67087437,70170.0,70168.0,0.001612]
[1730478274215,0.51985795,70170.0,70168.0,0.001612]
[1730478274464,0.265525,70163.0,70160.0,0.001612]
[1730478274751,0.40398025,70163.0,70160.0,0.001612]
[1730478274960,0.46411133,70163.0,70160.0,0.001612]
[1730478275180,0.37863109,70163.0,70160.0,0.001612]
[1730478275412,0.33626109,70163.0,70160.0,0.001612]
[1730478275828,0.46671311,70163.0,70160.0,0.001612]
[1730478276245,0.33626109,70163.0,70160.0,0.001612]
[1730478276696,0.34426109,70163.0,70160.0,0.001612]
[1730478276932,0.19629307,70163.0,70160.0,0.001612]
[1730478277156,0.07601152,70163.0,70160.0,0.144143]
[1730478277361,0.09201152,70163.0,70162.0,0.001823]
[1730478277591,0.06095709,70163.0,70162.0,0.14435]
[1730478277802,0.05395709,70163.0,70162.0,0.15246056]
[1730478278004,0.05395709,70163.0,70162.0,0.00993356]
[1730478278005,0.06095709,70163.0,70162.0,0.00993356]
[1730478278135,0.05035208,70163.0,70162.0,0.15246056]
[1730478278540,0.04335208,70163.0,70162.0,0.29376624]
[1730478278761,0.03443656,70163.0,70162.0,0.29091581]
[1730478278961,0.04243656,70163.0,70162.0,0.29091581]
[1730478279184,0.03443656,70163.0,70162.0,0.29091581]
[1730478279534,0.03443656,70163.0,70162.0,0.29391581]
[1730478279742,0.01324483,70163.0,70162.0,0.29391581]
[1730478280192,0.01324483,70163.0,70162.0,0.29691581]
[1730478280193,0.03440956,70163.0,70162.0,0.29691581]
[1730478280414,0.03440956,70163.0,70162.0,0.29091581]
[1730478280624,0.21288977,70174.0,70162.0,0.2910777]
[1730478280823,0.21288977,70174.0,70173.0,0.142504]
[1730478281281,0.21288977,70183.0,70173.0,0.00902354]
[1730478281282,0.00891112,70178.0,70173.0,0.00902354]
[1730478281501,0.00891112,70177.0,70175.0,0.142498]
[1730478281736,0.00891112,70176.0,70173.0,0.285009]
[1730478281963,0.284989,70178.0,70174.0,0.00901563]
[1730478282173,0.00891099,70177.0,70164.0,0.21288977]
[1730478282387,0.11949458,70176.0,70175.0,0.00900772]
[1730478282594,0.285005,70175.0,70166.0,0.285038]
[1730478282810,0.01949548,70174.0,70170.0,0.142509]
[1730478283038,0.01949548,70174.0,70167.0,0.285034]
[1730478283039,0.427507,70174.0,70173.0,0.003]
[1730478283263,0.44700225,70174.0,70173.0,0.003]
[1730478283699,0.44700225,70174.0,70162.0,0.000823]
[1730478283700,0.142525,70163.0,70162.0,0.000823]
[1730478284623,0.16201972,70163.0,70162.0,0.000823]
[1730478285281,0.15310788,70163.0,70162.0,0.000823]
[1730478285709,0.01058288,70163.0,70162.0,0.15246056]
[1730478285912,0.01058288,70163.0,70162.0,0.00993356]
[1730478286135,0.1,70166.0,70162.0,0.00993356]
[1730478286136,0.25143184,70166.0,70162.0,0.15546056]
[1730478286343,0.15310066,70165.0,70162.0,0.01593356]
[1730478286553,0.285035,70167.0,70162.0,0.01293356]
[1730478286554,0.265525,70163.0,70162.0,0.01293356]
[1730478286728,0.27443829,70163.0,70162.0,0.01193356]
[1730478286995,0.32395697,70163.0,70162.0,0.000823]
[1730478287227,0.42826427,70163.0,70162.0,0.003823]
[1730478287489,0.54470909,70163.0,70162.0,0.006823]
[1730478287690,0.54470909,70163.0,70162.0,0.000823]
[1730478287919,0.242529,70161.0,70160.0,0.001612]
[1730478288134,0.44040579,70161.0,70160.0,0.001612]
[1730478288579,0.44040579,70161.0,70160.0,0.001752]
[1730478288778,0.30195054,70161.0,70160.0,0.001752]
[1730478289203,0.142547,70152.0,70151.0,0.21288977]
[1730478289410,0.1620409,70152.0,70151.0,0.21288977]
[1730478289635,0.142549,70151.0,70144.0,0.143385]
[1730478289832,0.142549,70151.0,70145.0,0.14256]
[1730478289833,0.1620429,70151.0,70145.0,0.14256]
[1730478290008,0.15312878,70151.0,70146.0,0.142559]
[1730478290478,0.16204384,70151.0,70144.0,0.000823]
[1730478290688,0.04062088,70151.0,70150.0,0.692551]
[1730478290894,0.02112604,70151.0,70150.0,0.78100625]
[1730478291322,0.00891506,70161.0,70150.0,0.5]
[1730478291527,0.142549,70151.0,70150.0,0.5]
[1730478291748,0.02112935,70151.0,70150.0,0.5]
[1730478292170,0.02112935,70151.0,70150.0,0.78100625]
[1730478292627,0.01320703,70151.0,70150.0,0.97140625]
[1730478292848,0.01410637,70182.0,70150.0,0.97140625]
[1730478292849,0.02113199,70163.0,70155.0,0.285079]
[1730478293075,0.21288977,70165.0,70164.0,0.142523]
[1730478293304,0.24727027,70165.0,70164.0,0.28097825]
[1730478293508,0.0343805,70165.0,70164.0,0.28097825]
[1730478294416,0.04329556,70165.0,70164.0,0.28097825]
[1730478294617,0.04329556,70165.0,70164.0,0.28397825]
[1730478295612,0.04329556,70165.0,70164.0,0.003]
[1730478295613,0.31943512,70165.0,70164.0,0.003]
[1730478295842,0.42797574,70165.0,70164.0,0.003]
[1730478295956,0.42797574,70165.0,70164.0,0.006]
[1730478296162,0.42797574,70165.0,70164.0,0.003]
[1730478297068,0.242527,70162.0,70161.0,0.000823]
[1730478297267,0.33643082,70162.0,70161.0,0.000823]
[1730478298102,0.34546842,70162.0,70161.0,0.001823]
[1730478299227,0.35964579,70162.0,70161.0,0.001823]
[1730478299695,0.36864579,70162.0,70161.0,0.001823]
[1730478300160,0.10311879,70162.0,70161.0,0.001823]
[1730478300380,0.10311879,70162.0,70161.0,0.144352]
[1730478300381,0.08894142,70162.0,70161.0,0.144352]
[1730478300817,0.08894142,70162.0,70161.0,0.001823]
[1730478301242,0.22246842,70162.0,70161.0,0.000823]
[1730478301479,0.07994142,70162.0,70161.0,0.000823]
[1730478301692,0.07994142,70162.0,70161.0,0.143352]
[1730478301906,0.07994142,70162.0,70161.0,0.28180725]
[1730478302566,0.07611302,70162.0,70161.0,0.28480725]
[1730478302764,0.05392858,70162.0,70161.0,0.28480725]
[1730478303002,0.07611184,70162.0,70161.0,0.28780725]
[1730478303238,0.0709653,70162.0,70161.0,0.28480725]
[1730478303436,0.0709653,70162.0,70161.0,0.28780725]
[1730478303877,0.0709653,70162.0,70161.0,0.28480725]
[1730478304296,0.0709653,70162.0,70161.0,0.28780725]
[1730478304508,0.0709653,70162.0,70161.0,0.28480725]
[1730478305411,0.0709653,70162.0,70161.0,0.146352]
[1730478305898,0.0709653,70162.0,70161.0,0.149352]
[1730478306349,0.0709653,70162.0,70161.0,0.28180725]
[1730478306599,0.05392858,70162.0,70161.0,0.56020725]
[1730478306805,0.07611951,70162.0,70161.0,0.69568455]
[1730478307029,0.05392858,70162.0,70161.0,0.69868455]
[1730478307266,0.04329556,70162.0,70161.0,0.70168455]
[1730478307482,0.04329556,70162.0,70161.0,0.55720725]
[1730478308348,0.0343805,70162.0,70161.0,0.55720725]
[1730478308581,0.21350749,70162.0,70161.0,0.000823]
[1730478309047,0.21350749,70162.0,70161.0,0.003823]
[1730478309293,0.33650749,70162.0,70161.0,0.006823]
[1730478309496,0.1,70154.0,70151.0,0.21288977]
[1730478309721,0.17098049,70154.0,70153.0,0.27255442]
[1730478309929,0.17098049,70154.0,70153.0,0.13000942]
[1730478310136,0.31352349,70154.0,70153.0,0.13000942]
[1730478310403,0.07098049,70154.0,70153.0,0.27255442]
[1730478310628,0.07498049,70154.0,70153.0,0.27255442]
[1730478311086,0.04729235,70154.0,70153.0,0.27255442]
[1730478311317,0.08827599,70154.0,70153.0,0.27255442]
[1730478312247,0.0799946,70154.0,70153.0,0.27255442]
[1730478312472,0.0799946,70154.0,70153.0,0.142545]
[1730478312955,0.06294852,70154.0,70153.0,0.66004166]
[1730478313804,0.0433805,70154.0,70153.0,0.92334166]
[1730478314018,0.0383805,70154.0,70153.0,0.92334166]
[1730478314479,0.01722327,70154.0,70153.0,0.92334166]
[1730478314726,0.004,70154.0,70153.0,0.92887697]
[1730478314918,0.004,70154.0,70153.0,1.06735427]
[1730478314919,0.01331545,70154.0,70153.0,1.06735427]
[1730478315150,0.001646,70166.0,70165.0,0.142521]
[1730478315397,0.001646,70166.0,70165.0,0.28097625]
[1730478315398,0.04250889,70166.0,70165.0,0.28097625]
[1730478316281,0.03359754,70166.0,70165.0,0.28097625]
[1730478316492,0.03359754,70166.0,70165.0,0.28397625]
[1730478316938,0.03359754,70166.0,70165.0,0.28697625]
[1730478317429,0.04250898,70166.0,70165.0,0.28697625]
[1730478317872,0.04250898,70166.0,70165.0,0.66601766]
[1730478318103,0.03359754,70166.0,70165.0,0.66301766]
[1730478318551,0.03359347,70166.0,70165.0,0.66601766]
[1730478318779,0.03359144,70166.0,70165.0,0.66601766]
[1730478319013,0.03359144,70166.0,70165.0,0.28097625]
[1730478319228,0.04250314,70166.0,70165.0,0.15460783]
[1730478319498,0.31785495,70166.0,70165.0,0.01508683]
[1730478319708,0.82398602,70166.0,70165.0,0.01508683]
[1730478319916,0.82398602,70166.0,70152.0,0.21288977]
[1730478319917,0.142545,70153.0,70152.0,0.21288977]
[1730478320160,0.20043971,70153.0,70152.0,0.21288977]
[1730478320378,0.19152801,70153.0,70152.0,0.220565]
[1730478320614,0.04898301,70153.0,70152.0,0.00767523]
[1730478320826,0.04898301,70153.0,70152.0,0.15022223]
[1730478321262,0.04898301,70153.0,70152.0,0.50441803]
[1730478321478,0.03194544,70153.0,70152.0,0.28867748]
[1730478321708,0.03194544,70153.0,70152.0,0.29167748]
[1730478321948,0.02129696,70153.0,70152.0,0.15322223]
[1730478322180,0.03195007,70153.0,70152.0,0.15322223]
[1730478323069,0.03195007,70153.0,70152.0,0.01067523]
[1730478323317,0.03195007,70153.0,70152.0,0.37342843]
[1730478323522,0.001646,70166.0,70165.0,0.142521]
[1730478323741,0.03360321,70166.0,70165.0,0.28097625]
[1730478323946,0.03360321,70166.0,70165.0,0.29041598]
[1730478324164,0.001646,70166.0,70165.0,0.29041598]
[1730478324390,0.001646,70166.0,70165.0,0.40497278]
[1730478324831,0.005646,70166.0,70165.0,0.40497278]
[1730478325282,0.001646,70166.0,70165.0,0.29041598]
[1730478325501,0.001646,70166.0,70165.0,0.29341598]
[1730478325984,0.001646,70166.0,70165.0,0.29041598]
[1730478326235,0.001646,70166.0,70165.0,0.55511598]
[1730478326446,1e-06,70166.0,70165.0,0.55811598]
[1730478326656,1e-06,70166.0,70165.0,1.07563469]
[1730478326869,0.22992447,70182.0,70181.0,0.142488]
[1730478327078,0.22992447,70182.0,70181.0,0.73818466]
[1730478327299,0.22992447,70182.0,70181.0,0.92468466]
[1730478327300,0.0170347,70182.0,70181.0,0.92468466]
[1730478327533,0.0170347,70182.0,70181.0,0.93404079]
[1730478327998,0.0170347,70182.0,70181.0,0.29029938]
[1730478328239,0.0170347,70182.0,70181.0,0.79029938]
[1730478328895,0.03033578,70182.0,70181.0,0.79229938]
[1730478329323,0.03033578,70182.0,70181.0,0.79329938]
[1730478329552,0.03033578,70182.0,70181.0,0.65684413]
[1730478329781,0.03033578,70182.0,70181.0,0.51135613]
[1730478330003,0.03033578,70182.0,70181.0,0.65684413]
[1730478330208,0.03033578,70182.0,70181.0,0.51435613]
[1730478330209,0.04363284,70182.0,70181.0,0.51435613]
[1730478330638,0.02659814,70182.0,70181.0,0.51435613]
[1730478330859,0.19036533,70182.0,70181.0,0.51135613]
[1730478331305,0.19036533,70182.0,70181.0,0.50935613]
[1730478331306,0.15578306,70182.0,70181.0,0.50935613]
[1730478331507,0.04787163,70182.0,70181.0,0.50935613]
[1730478331723,0.04787163,70182.0,70181.0,0.74752834]
[1730478331925,0.01329742,70182.0,70181.0,0.79229938]
[1730478332205,0.05671412,70203.0,70181.0,0.79229938]
[1730478332206,0.02127587,70196.0,70184.0,0.284965]
[1730478332429,0.142486,70182.0,70181.0,0.50087343]
[1730478332651,0.11679804,70182.0,70162.0,0.21288977]
[1730478332890,0.142509,70171.0,70170.0,0.21288977]
[1730478333128,0.142525,70163.0,70162.0,0.21288977]
[1730478333355,0.29323173,70163.0,70162.0,0.21288977]
[1730478333579,0.1,70156.0,70154.0,0.21371177]
[1730478333826,0.01329085,70155.0,70154.0,0.21371177]
[1730478334051,0.01329085,70155.0,70154.0,0.000822]
[1730478334288,0.25583185,70155.0,70154.0,0.000822]
[1730478334510,0.11329085,70155.0,70154.0,0.28182025]
[1730478334732,0.01329085,70155.0,70154.0,0.38851218]
[1730478334946,0.01329085,70155.0,70154.0,0.13927725]
[1730478335202,0.01329085,70155.0,70154.0,0.28182025]
[1730478336484,0.02127317,70168.0,70155.0,0.285081]
[1730478336698,0.21288977,70161.0,70159.0,0.142533]
[1730478336908,0.0132925,70160.0,70156.0,0.13845525]
[1730478337155,0.0132925,70159.0,70158.0,0.142535]
[1730478337361,0.0132925,70159.0,70158.0,0.28099025]
[1730478338214,0.142539,70156.0,70155.0,0.003]
[1730478338676,0.38803578,70156.0,70155.0,0.003]
[1730478338896,0.38466453,70156.0,70155.0,0.003]
[1730478339127,0.265541,70155.0,70154.0,0.00014366]
[1730478339342,0.34465262,70155.0,70154.0,0.00014366]
[1730478339549,0.40562767,70155.0,70154.0,0.00014366]
[1730478339876,0.88216862,70155.0,70154.0,0.00014366]
[1730478340082,0.77580509,70155.0,70154.0,0.00014366]
[1730478340289,0.88215634,70155.0,70154.0,0.00014366]
[1730478340497,0.89415634,70155.0,70154.0,0.00114366]
[1730478340720,0.89415634,70155.0,70150.0,0.5]
[1730478340721,0.1,70154.0,70150.0,0.5]
[1730478340947,0.36480226,70151.0,70150.0,0.5]
[1730478341175,0.76676824,70151.0,70150.0,0.5]
[1730478341395,0.64625239,70151.0,70150.0,0.5]
[1730478341637,0.7526003,70151.0,70150.0,0.5]
[1730478341854,0.96708928,70151.0,70150.0,0.5]
[1730478342191,1.00130287,70151.0,70150.0,0.5]
[1730478342619,1.00130287,70151.0,70112.0,0.49814677]
[1730478342620,0.64460641,70143.0,70142.0,1e-06]
[1730478342837,3.74439177,70143.0,70142.0,1e-06]
[1730478343009,3.5698713,70143.0,70142.0,1e-06]
[1730478343149,2.5101389,70143.0,70142.0,1e-06]
[1730478343847,5.0501389,70143.0,70142.0,1e-06]
[1730478344532,1.83899239,70143.0,70142.0,1e-06]
[1730478344753,1.13020231,70143.0,70142.0,1e-06]
[1730478344982,1.04420236,70143.0,70142.0,1e-06]
[1730478345187,1.03093693,70143.0,70142.0,1e-06]
[1730478345409,1.07971993,70143.0,70142.0,1e-06]
[1730478345611,1.23219723,70143.0,70142.0,1e-06]
[1730478345825,1.25425887,70143.0,70142.0,1e-06]
[1730478346039,4.54999416,70143.0,70142.0,1e-06]
[1730478346242,2.11761556,70143.0,70142.0,1e-06]
[1730478346451,2.10361556,70143.0,70142.0,1e-06]
[1730478347099,2.04197403,70143.0,70142.0,1e-06]
[1730478347346,2.2095757,70143.0,70142.0,1e-06]